fUSD/lending_fUSD_20250916
["ID","MTS","AMOUNT","RATE_DAILY","PERIOD"]
[385806301,1758052256128,-650.19,0.00030136,6]
[385806302,1758052256137,-406.97,0.00030155,2]
[385806303,1758052256146,-398.54215019,0.00030173,5]
[385806304,1758052256154,-500.0,0.00030173,2]
[385806305,1758052256164,-504.62513184,0.00030173,5]
[385806306,1758052256174,-500.0,0.00030173,5]
[385806307,1758052256183,-500.0,0.00030173,5]
[385806308,1758052256191,-500.0,0.00030173,5]
[385806309,1758052256201,-200.0,0.00030173,5]
[385806310,1758052256210,-500.0,0.00030173,5]
[385806311,1758052256219,-3996.1,0.000302,3]
[385806312,1758052256228,-1091.85543508,0.00030225,2]
[385806313,1758052256237,-541.76,0.00030259,2]
[385806314,1758052256246,-5847.7170008,0.0003027,2]
[385806315,1758052256255,-288.0,0.0003028,2]
[385806316,1758052256264,-684.03,0.00030299,2]
[385806317,1758052256279,-9925.83423339,0.000303,2]
[385806318,1758052256288,-3996.1,0.000303,3]
[385806319,1758052256297,-200.0,0.00030325,2]
[385806320,1758052256313,-1300.0,0.00030326,7]
[385806321,1758052256323,-1000.0,0.00030327,2]
[385806322,1758052256331,-1425.0,0.00030333,2]
[385806323,1758052256341,-1425.0,0.00030337,2]
[385806324,1758052256350,-151.0,0.00030338,4]
[385806325,1758052256359,-1425.0,0.00030351,2]
[385806326,1758052256368,-174.8846393,0.00030353,2]
[385806327,1758052256378,-500.0,0.00030355,120]
[385806328,1758052256387,-1425.0,0.00030356,2]
[385806329,1758052256396,-500.0,0.00030358,11]
[385806330,1758052256406,-389.00242953,0.00030358,11]
[385806331,1758052256415,-1425.0,0.00030359,2]
[385806332,1758052256425,-168.0,0.00030362,2]
[385806333,1758052256434,-1425.0,0.00030376,2]
[385806334,1758052256443,-1425.0,0.00030378,2]
[385806335,1758052256452,-160.40177069,0.00030378,6]
[385806336,1758052256461,-500.0,0.00030379,11]
[385806337,1758052256470,-500.0,0.00030379,11]
[385806338,1758052256479,-500.0,0.00030379,11]
[385806339,1758052256488,-500.0,0.00030379,11]
[385806340,1758052256498,-500.0,0.00030379,11]
[385806341,1758052256507,-500.0,0.00030379,11]
[385806342,1758052256516,-500.0,0.00030379,11]
[385806343,1758052256524,-500.0,0.00030379,11]
[385806344,1758052256533,-168.0,0.00030384,2]
[385806345,1758052256542,-1000.0,0.00030387,2]
[385806346,1758052256557,-1000.0,0.00030388,2]
[385806347,1758052256566,-1425.0,0.00030389,2]
[385806348,1758052256575,-1000.0,0.00030392,2]
[385806349,1758052256585,-500.0,0.00030392,6]
[385806350,1758052256595,-500.0,0.00030392,6]
[385806351,1758052256605,-150.0,0.00030396,2]
[385806352,1758052256615,-448.0,0.00030396,2]
[385806353,1758052256625,-150.0,0.00030396,2]
[385806354,1758052256636,-500.0,0.00030396,2]
[385806355,1758052256645,-200.0,0.00030396,2]
[385806356,1758052256655,-150.0,0.00030396,2]
[385806357,1758052256664,-3996.1,0.000304,3]
[385806358,1758052256674,-500.0,0.00030409,6]
[385806359,1758052256683,-500.0,0.00030409,6]
[385806360,1758052256692,-500.0,0.00030409,6]
[385806361,1758052256701,-500.0,0.00030409,6]
[385806362,1758052256711,-500.0,0.00030409,6]
[385806363,1758052256721,-500.0,0.00030409,6]
[385806364,1758052256730,-500.0,0.00030409,6]
[385806365,1758052256739,-256.57596553,0.00030409,6]
[385806366,1758052256748,-684.03,0.00030409,2]
[385806367,1758052256758,-684.03,0.00030409,2]
[385806368,1758052256767,-324.039231,0.0003041,6]
[385806369,1758052256777,-196.521361,0.0003041,6]
[385806370,1758052256787,-521.722235,0.0003041,6]
[385806371,1758052256797,-400.0,0.0003041,6]
[385806372,1758052256807,-399.77605006,0.0003041,6]
[385806373,1758052256816,-419.57451582,0.0003041,6]
[385806374,1758052256826,-1211.27,0.0003041,6]
[385806375,1758052256835,-400.0,0.0003041,6]
[385806376,1758052256844,-400.0,0.0003041,6]
[385806377,1758052256854,-400.0,0.0003041,6]
[385806378,1758052256863,-400.0,0.0003041,6]
[385806379,1758052256873,-400.0,0.0003041,6]
[385806380,1758052256883,-400.0,0.0003041,6]
[385806381,1758052256892,-405.2373872,0.0003041,6]
[385806382,1758052256901,-400.0,0.0003041,6]
[385806383,1758052256911,-407.95277428,0.0003041,6]
[385806384,1758052256920,-400.0,0.0003041,6]
[385806385,1758052256930,-400.0,0.0003041,6]
[385806386,1758052256939,-400.0,0.0003041,6]
[385806387,1758052256949,-400.0,0.0003041,6]
[385806388,1758052256959,-400.0,0.0003041,6]
[385806389,1758052256968,-400.0,0.0003041,6]
[385806390,1758052256977,-400.0,0.0003041,6]
[385806391,1758052256989,-400.0,0.0003041,6]
[385806392,1758052257000,-400.0,0.0003041,6]
[385806393,1758052257010,-400.0,0.0003041,6]
[385806394,1758052257020,-400.0,0.0003041,6]
[385806395,1758052257029,-400.0,0.0003041,6]
[385806396,1758052257038,-400.0,0.0003041,6]
[385806397,1758052257047,-400.0,0.0003041,6]
[385806398,1758052257056,-443.8767146,0.0003041,6]
[385806399,1758052257066,-400.0,0.0003041,6]
[385806400,1758052257074,-400.0,0.0003041,6]
[385806401,1758052257083,-400.0,0.0003041,6]
[385806402,1758052257092,-400.0,0.0003041,6]
[385806403,1758052257103,-400.0,0.0003041,6]
[385806404,1758052257113,-371.2263292,0.0003041,6]
[385806405,1758052257123,-400.0,0.0003041,6]
[385806406,1758052257133,-400.0,0.0003041,6]
[385806407,1758052257142,-400.0,0.0003041,6]
[385806408,1758052257151,-400.0,0.0003041,6]
[385806409,1758052257160,-400.0,0.0003041,6]
[385806410,1758052257169,-400.0,0.0003041,6]
[385806411,1758052257178,-400.0,0.0003041,6]
[385806412,1758052257187,-400.0,0.0003041,6]
[385806413,1758052257197,-400.0,0.0003041,6]
[385806414,1758052257206,-400.0,0.0003041,6]
[385806415,1758052257223,-403.41297196,0.0003041,6]
[385806416,1758052257234,-400.0,0.0003041,6]
[385806417,1758052257243,-400.0,0.0003041,6]
[385806418,1758052257252,-403.92584992,0.0003041,6]
[385806419,1758052257262,-400.0,0.0003041,6]
[385806420,1758052257271,-400.0,0.0003041,6]
[385806421,1758052257280,-400.0,0.0003041,6]
[385806422,1758052257289,-400.0,0.0003041,6]
[385806423,1758052257299,-400.0,0.0003041,6]
[385806424,1758052257310,-400.0,0.0003041,6]
[385806425,1758052257319,-400.0,0.0003041,6]
[385806426,1758052257329,-400.0,0.0003041,6]
[385806427,1758052257338,-400.0,0.0003041,6]
[385806428,1758052257347,-400.0,0.0003041,6]
[385806429,1758052257357,-400.0,0.0003041,6]
[385806430,1758052257366,-400.0,0.0003041,6]
[385806431,1758052257375,-403.24142873,0.0003041,6]
[385806432,1758052257385,-466.26,0.0003041,6]
[385806433,1758052257397,-400.0,0.0003041,6]
[385806434,1758052257408,-400.0,0.0003041,6]
[385806435,1758052257418,-400.0,0.0003041,6]
[385806436,1758052257428,-400.0,0.0003041,6]
[385806437,1758052257437,-400.0,0.0003041,6]
[385806438,1758052257446,-400.0,0.0003041,6]
[385806439,1758052257455,-400.0,0.0003041,6]
[385806440,1758052257465,-400.0,0.0003041,6]
[385806441,1758052257474,-400.0,0.0003041,6]
[385806442,1758052257483,-400.0,0.0003041,6]
[385806443,1758052257492,-400.0,0.0003041,6]
[385806444,1758052257502,-400.0,0.0003041,6]
[385806445,1758052257511,-400.0,0.0003041,6]
[385806446,1758052257520,-400.0,0.0003041,6]
[385806447,1758052257529,-400.0,0.0003041,6]
[385806448,1758052257539,-400.0,0.0003041,6]
[385806449,1758052257548,-400.0,0.0003041,6]
[385806450,1758052257561,-400.0,0.0003041,6]
[385806451,1758052257570,-403.62286453,0.0003041,6]
[385806452,1758052257579,-400.0,0.0003041,6]
[385806453,1758052257589,-400.0,0.0003041,6]
[385806454,1758052257599,-400.0,0.0003041,6]
[385806455,1758052257608,-400.0,0.0003041,6]
[385806456,1758052257618,-402.91106246,0.0003041,6]
[385806457,1758052257628,-400.0,0.0003041,6]
[385806458,1758052257638,-400.0,0.0003041,6]
[385806459,1758052257649,-400.0,0.0003041,6]
[385806460,1758052257658,-400.0,0.0003041,6]
[385806461,1758052257668,-400.0,0.0003041,6]
[385806462,1758052257678,-400.0,0.0003041,6]
[385806463,1758052257689,-400.0,0.0003041,6]
[385806464,1758052257698,-400.0,0.0003041,6]
[385806465,1758052257707,-400.0,0.0003041,6]
[385806466,1758052257717,-400.0,0.0003041,6]
[385806467,1758052257726,-400.0,0.0003041,6]
[385806468,1758052257736,-400.0,0.0003041,6]
[385806469,1758052257745,-400.0,0.0003041,6]
[385806470,1758052257754,-400.0,0.0003041,6]
[385806471,1758052257764,-400.0,0.0003041,6]
[385806472,1758052257774,-400.0,0.0003041,6]
[385806473,1758052257783,-400.0,0.0003041,6]
[385806474,1758052257792,-400.0,0.0003041,6]
[385806475,1758052257801,-400.0,0.0003041,6]
[385806476,1758052257811,-400.0,0.0003041,6]
[385806477,1758052257820,-400.0,0.0003041,6]
[385806478,1758052257830,-400.0,0.0003041,6]
[385806479,1758052257840,-400.0,0.0003041,6]
[385806480,1758052257849,-405.26383188,0.0003041,6]
[385806481,1758052257858,-400.0,0.0003041,6]
[385806482,1758052257867,-588.47,0.0003041,6]
[385806483,1758052257876,-400.0,0.0003041,6]
[385806484,1758052257885,-400.0,0.0003041,6]
[385806485,1758052257895,-400.0,0.0003041,6]
[385806486,1758052257904,-400.0,0.0003041,6]
[385806487,1758052257913,-400.0,0.0003041,6]
[385806488,1758052257923,-400.0,0.0003041,6]
[385806489,1758052257933,-400.0,0.0003041,6]
[385806490,1758052257942,-400.0,0.0003041,6]
[385806491,1758052257951,-500.0,0.0003041,14]
[385806492,1758052257962,-400.0,0.0003041,6]
[385806493,1758052257973,-187.6316023,0.0003041,6]
[385806494,1758052257982,-400.0,0.0003041,6]
[385806495,1758052257992,-400.0,0.0003041,6]
[385806496,1758052258002,-400.0,0.0003041,6]
[385806497,1758052258011,-400.0,0.0003041,6]
[385806498,1758052258020,-487.29,0.0003041,6]
[385806499,1758052258029,-400.0,0.0003041,6]
[385806500,1758052258039,-400.0,0.0003041,6]
[385806501,1758052258050,-400.0,0.0003041,6]
[385806502,1758052258060,-508.87223288,0.0003041,6]
[385806503,1758052258070,-400.0,0.0003041,6]
[385806504,1758052258081,-400.0,0.0003041,6]
[385806505,1758052258091,-400.0,0.0003041,6]
[385806506,1758052258102,-400.0,0.0003041,6]
[385806507,1758052258111,-412.10258857,0.0003041,6]
[385806508,1758052258122,-400.0,0.0003041,6]
[385806509,1758052258133,-400.0,0.0003041,6]
[385806510,1758052258142,-400.0,0.0003041,6]
[385806511,1758052258151,-400.0,0.0003041,6]
[385806512,1758052258162,-400.0,0.0003041,6]
[385806513,1758052258171,-400.0,0.0003041,6]
[385806514,1758052258180,-400.0,0.0003041,6]
[385806515,1758052258191,-400.0,0.0003041,6]
[385806516,1758052258200,-400.0,0.0003041,6]
[385806517,1758052258209,-400.0,0.0003041,6]
[385806518,1758052258219,-400.0,0.0003041,6]
[385806519,1758052258228,-400.0,0.0003041,6]
[385806520,1758052258238,-400.0,0.0003041,6]
[385806521,1758052258247,-400.0,0.0003041,6]
[385806522,1758052258257,-400.0,0.0003041,6]
[385806523,1758052258266,-439.12,0.0003041,6]
[385806524,1758052258276,-400.0,0.0003041,6]
[385806525,1758052258287,-400.0,0.0003041,6]
[385806526,1758052258296,-400.0,0.0003041,6]
[385806527,1758052258305,-400.0,0.0003041,6]
[385806528,1758052258315,-400.0,0.0003041,6]
[385806529,1758052258325,-400.0,0.0003041,6]
[385806530,1758052258334,-400.0,0.0003041,6]
[385806531,1758052258343,-400.0,0.0003041,6]
[385806532,1758052258352,-400.0,0.0003041,6]
[385806533,1758052258361,-400.0,0.0003041,6]
[385806534,1758052258370,-583.89,0.0003041,6]
[385806535,1758052258379,-463.0296567,0.0003041,6]
[385806536,1758052258387,-184.20720248,0.0003041,6]
[385806537,1758052258396,-191.1,0.0003041,6]
[385806538,1758052258406,-400.0,0.0003041,6]
[385806539,1758052258415,-400.0,0.0003041,6]
[385806540,1758052258425,-420.04379915,0.0003041,6]
[385806541,1758052258434,-400.0,0.0003041,6]
[385806542,1758052258443,-400.0,0.0003041,2]
[385806543,1758052258452,-400.0,0.0003041,6]
[385806544,1758052258461,-400.0,0.0003041,6]
[385806545,1758052258470,-400.0,0.0003041,6]
[385806546,1758052258479,-400.0,0.0003041,6]
[385806547,1758052258488,-400.0,0.0003041,6]
[385806548,1758052258497,-400.0,0.0003041,6]
[385806549,1758052258507,-400.0,0.0003041,6]
[385806550,1758052258515,-400.0,0.0003041,6]
[385806551,1758052258525,-400.0,0.0003041,6]
[385806552,1758052258534,-400.0,0.0003041,6]
[385806553,1758052258544,-400.0,0.0003041,6]
[385806554,1758052258555,-400.0,0.0003041,6]
[385806555,1758052258564,-448.17,0.0003041,6]
[385806556,1758052258574,-400.0,0.0003041,6]
[385806557,1758052258583,-400.0,0.0003041,6]
[385806558,1758052258592,-400.0,0.0003041,6]
[385806559,1758052258602,-440.7,0.0003041,6]
[385806560,1758052258612,-207.53398161,0.0003041,6]
[385806561,1758052258621,-442.39,0.0003041,6]
[385806562,1758052258632,-400.0,0.0003041,6]
[385806563,1758052258642,-400.0,0.0003041,6]
[385806564,1758052258651,-400.0,0.0003041,6]
[385806565,1758052258660,-400.0,0.0003041,6]
[385806566,1758052258670,-400.0,0.0003041,6]
[385806567,1758052258679,-901.58,0.0003041,6]
[385806568,1758052258689,-400.0,0.0003041,6]
[385806569,1758052258698,-400.0,0.0003041,6]
[385806570,1758052258708,-706.53,0.0003041,6]
[385806571,1758052258718,-400.0,0.0003041,6]
[385806572,1758052258727,-400.0,0.0003041,6]
[385806573,1758052258736,-400.0,0.0003041,6]
[385806574,1758052258745,-400.0,0.0003041,6]
[385806575,1758052258754,-492.93447796,0.0003041,6]
[385806576,1758052258763,-400.0,0.0003041,6]
[385806577,1758052258772,-933.64,0.0003041,6]
[385806578,1758052258782,-400.0,0.0003041,6]
[385806579,1758052258791,-452.24,0.0003041,6]
[385806580,1758052258800,-400.0,0.0003041,6]
[385806581,1758052258809,-504.79363184,0.0003041,6]
[385806582,1758052258817,-400.0,0.0003041,6]
[385806583,1758052258826,-920.39,0.0003041,6]
[385806584,1758052258835,-194.58157461,0.0003041,6]
[385806585,1758052258844,-400.0,0.0003041,6]
[385806586,1758052258853,-400.0,0.0003041,6]
[385806587,1758052258862,-400.0,0.0003041,6]
[385806588,1758052258871,-400.0,0.0003041,6]
[385806589,1758052258881,-437.7,0.0003041,6]
[385806590,1758052258891,-400.0,0.0003041,6]
[385806591,1758052258900,-400.0,0.0003041,6]
[385806592,1758052258909,-400.0,0.0003041,6]
[385806593,1758052258919,-400.0,0.0003041,6]
[385806594,1758052258928,-400.0,0.0003041,6]
[385806595,1758052258937,-718.34,0.0003041,6]
[385806596,1758052258946,-400.0,0.0003041,6]
[385806597,1758052258955,-400.0,0.0003041,6]
[385806598,1758052258965,-400.0,0.0003041,6]
[385806599,1758052258974,-400.0,0.0003041,6]
[385806600,1758052258983,-400.0,0.0003041,6]
[385806601,1758052258992,-400.0,0.0003041,6]
[385806602,1758052259001,-400.0,0.0003041,6]
[385806603,1758052259010,-400.0,0.0003041,6]
[385806604,1758052259019,-400.0,0.0003041,6]
[385806605,1758052259027,-400.0,0.0003041,6]
[385806606,1758052259036,-403.58531172,0.0003041,6]
[385806607,1758052259045,-400.0,0.0003041,6]
[385806608,1758052259054,-400.0,0.0003041,6]
[385806609,1758052259063,-400.0,0.0003041,6]
[385806610,1758052259072,-400.0,0.0003041,6]
[385806611,1758052259081,-400.0,0.0003041,6]
[385806612,1758052259090,-464.58,0.0003041,6]
[385806613,1758052259099,-400.0,0.0003041,6]
[385806614,1758052259109,-511.0579787,0.0003041,6]
[385806615,1758052259117,-400.0,0.0003041,6]
[385806616,1758052259127,-400.0,0.0003041,6]
[385806617,1758052259135,-402.86687799,0.0003041,6]
[385806618,1758052259144,-400.0,0.0003041,6]
[385806619,1758052259154,-411.06066275,0.0003041,6]
[385806620,1758052259163,-400.0,0.0003041,6]
[385806621,1758052259176,-400.0,0.0003041,6]
[385806622,1758052259185,-406.51708223,0.0003041,6]
[385806623,1758052259195,-456.67,0.0003041,6]
[385806624,1758052259205,-411.29794538,0.0003041,6]
[385806625,1758052259214,-400.0,0.0003041,6]
[385806626,1758052259223,-310.605347,0.0003041,6]
[385806627,1758052259233,-400.0,0.0003041,6]
[385806628,1758052259242,-400.0,0.0003041,6]
[385806629,1758052259251,-400.0,0.0003041,6]
[385806630,1758052259260,-400.0,0.0003041,6]
[385806631,1758052259270,-400.0,0.0003041,6]
[385806632,1758052259280,-400.0,0.0003041,6]
[385806633,1758052259289,-400.0,0.0003041,6]
[385806634,1758052259299,-667.42,0.0003041,6]
[385806635,1758052259309,-869.29,0.0003041,6]
[385806636,1758052259318,-400.0,0.0003041,6]
[385806637,1758052259328,-400.0,0.0003041,6]
[385806638,1758052259337,-454.53,0.0003041,6]
[385806639,1758052259347,-178.08842524,0.0003041,6]
[385806640,1758052259356,-400.0,0.0003041,6]
[385806641,1758052259367,-400.0,0.0003041,6]
[385806642,1758052259377,-400.0,0.0003041,6]
[385806643,1758052259387,-400.0,0.0003041,6]
[385806644,1758052259397,-400.0,0.0003041,6]
[385806645,1758052259406,-400.0,0.0003041,6]
[385806646,1758052259416,-651.62,0.0003041,6]
[385806647,1758052259426,-400.0,0.0003041,6]
[385806648,1758052259436,-577.12,0.0003041,6]
[385806649,1758052259446,-400.0,0.0003041,6]
[385806650,1758052259455,-400.0,0.0003041,6]
[385806651,1758052259465,-400.0,0.0003041,6]
[385806652,1758052259475,-480.02,0.0003041,6]
[385806653,1758052259484,-487.61,0.0003041,6]
[385806654,1758052259657,-400.0,0.0003041,6]
[385806655,1758052259676,-405.59,0.0003041,6]
[385806656,1758052259686,-400.0,0.0003041,6]
[385806657,1758052259695,-400.0,0.0003041,6]
[385806658,1758052259705,-815.51,0.0003041,6]
[385806659,1758052259714,-410.93887309,0.0003041,6]
[385806660,1758052259724,-400.0,0.0003041,6]
[385806661,1758052259733,-457.34,0.0003041,6]
[385806662,1758052259742,-400.0,0.0003041,6]
[385806663,1758052259751,-400.0,0.0003041,6]
[385806664,1758052259761,-400.0,0.0003041,6]
[385806665,1758052259770,-400.0,0.0003041,6]
[385806666,1758052259779,-400.0,0.0003041,6]
[385806667,1758052259788,-400.0,0.0003041,6]
[385806668,1758052259797,-405.08350039,0.0003041,6]
[385806669,1758052259807,-400.0,0.0003041,6]
[385806670,1758052259816,-608.22,0.0003041,6]
[385806671,1758052259826,-400.0,0.0003041,6]
[385806672,1758052259836,-406.64086137,0.0003041,6]
[385806673,1758052259846,-412.65,0.0003041,6]
[385806674,1758052259855,-400.0,0.0003041,6]
[385806675,1758052259865,-400.0,0.0003041,6]
[385806676,1758052259874,-400.0,0.0003041,6]
[385806677,1758052259883,-400.0,0.0003041,6]
[385806678,1758052259892,-400.0,0.0003041,6]
[385806679,1758052259901,-400.0,0.0003041,6]
[385806680,1758052259911,-400.0,0.0003041,6]
[385806681,1758052259920,-400.0,0.0003041,6]
[385806682,1758052259930,-496.77,0.0003041,6]
[385806683,1758052259939,-400.0,0.0003041,6]
[385806684,1758052259948,-493.83,0.0003041,6]
[385806685,1758052259957,-400.0,0.0003041,6]
[385806686,1758052259966,-400.0,0.0003041,6]
[385806687,1758052259976,-400.0,0.0003041,6]
[385806688,1758052259985,-400.0,0.0003041,6]
[385806689,1758052259994,-400.0,0.0003041,6]
[385806690,1758052260004,-601.77,0.0003041,6]
[385806691,1758052260013,-400.0,0.0003041,6]
[385806692,1758052260023,-400.0,0.0003041,6]
[385806693,1758052260032,-400.0,0.0003041,6]
[385806694,1758052260042,-500.09902866,0.0003041,6]
[385806695,1758052260052,-455.9879524,0.0003041,6]
[385806696,1758052260062,-977.81,0.0003041,6]
[385806697,1758052260072,-501.69,0.0003041,6]
[385806698,1758052260081,-400.0,0.0003041,6]
[385806699,1758052260090,-400.0,0.0003041,6]
[385806700,1758052260099,-400.0,0.0003041,6]
[385806701,1758052260108,-400.0,0.0003041,6]
[385806702,1758052260118,-400.0,0.0003041,6]
[385806703,1758052260127,-400.0,0.0003041,6]
[385806704,1758052260137,-400.0,0.0003041,6]
[385806705,1758052260146,-400.0,0.0003041,6]
[385806706,1758052260156,-440.09,0.0003041,6]
[385806707,1758052260166,-512.12,0.0003041,6]
[385806708,1758052260176,-400.0,0.0003041,6]
[385806709,1758052260185,-1601.27,0.0003041,6]
[385806710,1758052260195,-491.0,0.0003041,6]
[385806711,1758052260204,-400.0,0.0003041,6]
[385806712,1758052260214,-439.97,0.0003041,6]
[385806713,1758052260224,-400.0,0.0003041,6]
[385806714,1758052260233,-400.0,0.0003041,6]
[385806715,1758052260243,-400.0,0.0003041,6]
[385806716,1758052260252,-400.0,0.0003041,6]
[385806717,1758052260262,-227.82330194,0.0003041,6]
[385806718,1758052260271,-851.33,0.0003041,6]
[385806719,1758052260280,-476.19,0.0003041,6]
[385806720,1758052260290,-400.0,0.0003041,6]
[385806721,1758052260299,-400.0,0.0003041,6]
[385806722,1758052260309,-400.0,0.0003041,6]
[385806723,1758052260318,-400.0,0.0003041,6]
[385806724,1758052260328,-400.0,0.0003041,6]
[385806725,1758052260337,-400.0,0.0003041,6]
[385806726,1758052260347,-605.76,0.0003041,6]
[385806727,1758052260358,-606.89,0.0003041,6]
[385806728,1758052260367,-572.71,0.0003041,6]
[385806729,1758052260379,-400.0,0.0003041,6]
[385806730,1758052260389,-400.0,0.0003041,6]
[385806731,1758052260400,-400.0,0.0003041,6]
[385806732,1758052260409,-400.0,0.0003041,6]
[385806733,1758052260420,-400.0,0.0003041,6]
[385806734,1758052260430,-400.0,0.0003041,6]
[385806735,1758052260440,-450.09,0.0003041,6]
[385806736,1758052260449,-400.0,0.0003041,6]
[385806737,1758052260458,-400.0,0.0003041,6]
[385806738,1758052260467,-400.0,0.0003041,6]
[385806739,1758052260477,-400.0,0.0003041,6]
[385806740,1758052260486,-400.0,0.0003041,6]
[385806741,1758052260495,-491.06,0.0003041,6]
[385806742,1758052260505,-400.0,0.0003041,6]
[385806743,1758052260514,-400.0,0.0003041,6]
[385806744,1758052260523,-1174.65,0.0003041,6]
[385806745,1758052260533,-531.4,0.0003041,6]
[385806746,1758052260542,-400.0,0.0003041,6]
[385806747,1758052260551,-447.21,0.0003041,6]
[385806748,1758052260563,-400.0,0.0003041,6]
[385806749,1758052260573,-418.57160022,0.0003041,6]
[385806750,1758052260582,-400.0,0.0003041,6]
[385806751,1758052260591,-400.0,0.0003041,6]
[385806752,1758052260602,-400.0,0.0003041,6]
[385806753,1758052260611,-405.95,0.0003041,6]
[385806754,1758052260621,-716.44,0.0003041,6]
[385806755,1758052260631,-400.0,0.0003041,6]
[385806756,1758052260640,-692.32,0.0003041,6]
[385806757,1758052260649,-400.0,0.0003041,6]
[385806758,1758052260659,-400.0,0.0003041,6]
[385806759,1758052260669,-552.22,0.0003041,6]
[385806760,1758052260678,-518.35,0.0003041,6]
[385806761,1758052260687,-542.68,0.0003041,6]
[385806762,1758052260697,-400.0,0.0003041,6]
[385806763,1758052260706,-430.31,0.0003041,6]
[385806764,1758052260717,-534.33,0.0003041,6]
[385806765,1758052260726,-400.0,0.0003041,5]
[385806766,1758052260735,-400.0,0.0003041,6]
[385806767,1758052260745,-406.78512072,0.0003041,6]
[385806768,1758052260754,-400.0,0.0003041,6]
[385806769,1758052260763,-400.0,0.0003041,6]
[385806770,1758052260773,-400.0,0.0003041,6]
[385806771,1758052260782,-400.0,0.0003041,6]
[385806772,1758052260792,-400.0,0.0003041,6]
[385806773,1758052260801,-400.0,0.0003041,6]
[385806774,1758052260810,-582.39,0.0003041,6]
[385806775,1758052260819,-400.0,0.0003041,6]
[385806776,1758052260828,-400.0,0.0003041,6]
[385806777,1758052260838,-436.33,0.0003041,6]
[385806778,1758052260847,-400.0,0.0003041,6]
[385806779,1758052260856,-400.0,0.0003041,6]
[385806780,1758052260865,-582.44,0.0003041,6]
[385806781,1758052260875,-400.0,0.0003041,6]
[385806782,1758052260884,-400.0,0.0003041,6]
[385806783,1758052260893,-400.0,0.0003041,6]
[385806784,1758052260903,-400.0,0.0003041,6]
[385806785,1758052260912,-671.52,0.0003041,6]
[385806786,1758052260921,-542.77,0.0003041,6]
[385806787,1758052260931,-400.0,0.0003041,6]
[385806788,1758052260940,-400.0,0.0003041,6]
[385806789,1758052260949,-400.0,0.0003041,6]
[385806790,1758052260958,-400.0,0.0003041,6]
[385806791,1758052260968,-400.0,0.0003041,6]
[385806792,1758052260978,-400.0,0.0003041,6]
[385806793,1758052260987,-400.0,0.0003041,6]
[385806794,1758052260996,-400.0,0.0003041,6]
[385806795,1758052261005,-400.0,0.0003041,6]
[385806796,1758052261014,-712.67,0.0003041,6]
[385806797,1758052261023,-479.79,0.0003041,6]
[385806798,1758052261033,-605.66,0.0003041,6]
[385806799,1758052261042,-559.39,0.0003041,6]
[385806800,1758052261051,-588.44,0.0003041,6]